Workbook

Sheet Bill Estimator (Water)
A1: City of Poway
A2: Water
A3: Residential Bi-Monthly Bill Estimator
A5: Inputs
A6: Bi-Monthly Use: | B6: 30
A7: Meter Size: | B7: 3/4"
A8: Adopted (1/1/2025) | B8: Proposed (1/21/2026)
A10: Fun Facts
A11: Use (in Gallons) | B11: =$B$6*748.052 -> 22441.56
A12: Equivalent To1:
A13: Water Bottles (12 Fl.Oz.) | B13: =+($B$11*'Gallon Conversion'!$B$2)/12 -> 239376.64
A14: Washing Machine Loads | B14: =+$B$11/'Gallon Conversion'!B3 -> 1496.104
A15: Hot Tubs | B15: =+$B$11/'Gallon Conversion'!B4 -> 56.1039
A16: Semi-Truck Tankers | B16: =+$B$11/'Gallon Conversion'!B5 -> 2.493506667
A17: Swimming Pools | B17: =+$B$11/'Gallon Conversion'!B6 -> 1.246753333
A19: Impacts | B19: Adopted (1/1/2025) | D19: Proposed (1/21/2026)
A20: Variable
A21: =IF('Rate Option Data'!$J$4<>"",'Rate Option Data'!$P$4&" ("&'Rate Option Data'!$J$4&" Units)"," ") -> Tier 1 (20 Units) | B21: =IFERROR(IF('Rate Option Data'!$J$4>$B$6,$B$6*INDEX('Rate Option Data'!$D$25:$E$25,MATCH('Bill Estimator (Water)'!$A$8,'Rate Option Data'!$D$24:$E$24,0)),'Rate Option Data'!$J$4*INDEX('Rate Option Data'!$D$25:$E$25,MATCH('Bill Estimator (Water)'!$A$8,'Rate Option Data'!$D$24:$E$24,0))),0) -> 134.4 | C21: Uniform | D21: =B6*'Rate Option Data'!E29 -> 246.3
A22: =IF('Rate Option Data'!$J$5<>"",'Rate Option Data'!$P$5&" ("&'Rate Option Data'!$J$5&" Units)"," ") -> Tier 2 (56 Units) | B22: =IF(AND($B$6>'Rate Option Data'!$J$4,$B$6<='Rate Option Data'!$J$5),($B$6-'Rate Option Data'!$J$4)*INDEX('Rate Option Data'!$D$26:$E$26,MATCH('Bill Estimator (Water)'!$A$8,'Rate Option Data'!$D$24:$E$24,0)),IF($B$6<='Rate Option Data'!$J$4,0,('Rate Option Data'!$J$5-'Rate Option Data'!$J$4)*INDEX('Rate Option Data'!$D$26:$E$26,MATCH('Bill Estimator (Water)'!$A$8,'Rate Option Data'!$D$24:$E$24,0)))) -> 77.8
A23: =IF('Rate Option Data'!$J$6<>"",'Rate Option Data'!$P$6&" ("&'Rate Option Data'!$J$6&" Units)"," ") -> Tier 3 (>56 Units) | B23: =IF(AND($B$6>'Rate Option Data'!$J$5,$B$6<='Rate Option Data'!$J$6),($B$6-'Rate Option Data'!$J$5)*INDEX('Rate Option Data'!$D$27:$E$27,MATCH('Bill Estimator (Water)'!$A$8,'Rate Option Data'!$D$24:$E$24,0)),IF($B$6<='Rate Option Data'!$J$5,0,('Rate Option Data'!$J$6-'Rate Option Data'!$J$5)*INDEX('Rate Option Data'!$D$27:$E$27,MATCH('Bill Estimator (Water)'!$A$8,'Rate Option Data'!$D$24:$E$24,0)))) -> 0
A24: =IF('Rate Option Data'!J7<>"",'Rate Option Data'!P7&" ("&'Rate Option Data'!J7&" Units)"," ") -> 
A25: Variable Total | B25: =SUM(B21:B24) -> 212.2 | D25: =SUM(D21:D24) -> 246.3
A27: Fixed (Basic Service) | B27: =INDEX('Rate Option Data'!$C$13:$D$21,MATCH('Bill Estimator (Water)'!$B$7,'Rate Option Data'!$A$13:$A$21,0),MATCH('Bill Estimator (Water)'!$A$8,'Rate Option Data'!$C$12:$D$12,0)) -> 98.27 | D27: =INDEX('Rate Option Data'!$C$13:$D$21,MATCH('Bill Estimator (Water)'!$B$7,'Rate Option Data'!$A$13:$A$21,0),MATCH('Bill Estimator (Water)'!$B$8,'Rate Option Data'!$C$12:$D$12,0)) -> 113.03
A29: Total Bi-Monthly Bill | B29: =SUM(B25:B28) -> 310.47 | D29: =SUM(D25:D28) -> 359.33
A30: $ Increase | D30: =+D29-B29 -> 48.86
A31: % Increase | D31: =+(D29-B29)/B29 -> 0.1573743035
A33: All-in/Unit | B33: =+B29/$B$6 -> 10.349 | D33: =+D29/$B$6 -> 11.97766667
A34: $/Gallon | B34: =+B29/$B$11 -> 0.01383459973 | D34: =+D29/$B$11 -> 0.01601181023
A36: Notes:
A37: 1. An approximation that assumes averages for each category based on online research.
A38: 2. Please note this spreadsheet is for estimating residential impacts only. Your actual bill
A39: may vary slightly due to rounding.

Sheet Rate Option Data (hidden)
A1: WATER
F2: Customer Class | G2: Bi-monthly Tier Analysis | J2: Selected | L2: Customer Class | M2: Bi-monthly Tier Analysis | P2: Selected
F3: Single Family | G3: 2-Tiered | H3: 3-Tiered | I3: 4-Tiered | L3: Single Family | M3: 2-Tiered | N3: 3-Tiered
F4: Tier 1 | G4: 199 | H4: 20 | J4: =+H4 -> 20 | K4: =ISREF(J4) -> TRUE | M4: Tier 1 | N4: Tier 1 | P4: =+N4 -> Tier 1 | Q4: =ISREF(P4) -> TRUE
F5: Tier 2 | G5: =">"&G4 -> >199 | H5: 56 | J5: =+H5 -> 56 | K5: =ISREF(J5) -> TRUE | M5: Tier 2 | N5: Tier 2 | P5: =+N5 -> Tier 2 | Q5: =ISREF(P5) -> TRUE
F6: Tier 3 | H6: =">"&H5 -> >56 | J6: =+H6 -> >56 | K6: =ISREF(J6) -> TRUE | N6: Tier 3 | P6: =+N6 -> Tier 3 | Q6: =ISREF(P6) -> TRUE
A9: Selected
A12: Meter Size | B12: Current | C12: Adopted (1/1/2025) | D12: Proposed (1/21/2026)
A13: 5/8" | B13: 72.69 | C13: 72.69 | D13: 81.54
A14: 3/4" | B14: 98.27 | C14: 98.27 | D14: 113.03
A15: 1" | B15: 149.41 | C15: 149.41 | D15: 176.03
A16: 1 1/2" | B16: 277.27 | C16: 277.27 | D16: 333.52
A17: 2" | B17: 430.67 | C17: 430.67 | D17: 522.5
A18: 3" | B18: 916.53 | C18: 916.53 | D18: 1120.96
A19: 4" | B19: 1632.5 | C19: 1632.5 | D19: 2002.89
A20: 6" | B20: 3345.71 | C20: 3345.71 | D20: 4113.23
A21: 8" | B21: 6158.49 | C21: 6158.49 | D21: 7577.96
A24: Tiers | B24: Bi-Monthly Tiers (Units) | C24: Current | D24: Adopted (1/1/2025) | E24: Proposed (1/21/2026)
A25: Tier 1 | B25: =+J4 -> 20 | C25: 6.72 | D25: 6.72 | E25: 0
A26: Tier 2 | B26: =+J5 -> 56 | C26: 7.78 | D26: 7.78 | E26: 0
A27: Tier 3 | B27: >56 | C27: 10.69 | D27: 10.69 | E27: 0
A29: Uniform | E29: 8.21
A32: WASTEWATER
A42: Fixed Charge | B42: Current | C42: Proposed (3/4/2020) | D42: Proposed (1/1/2021)
B43: 21.34 | C43: 26.63 | D43: 28.31
A46: Tiers | B46: Bi-Monthly Tiers (Units) | C46: Current | D46: Proposed (3/4/2020) | E46: Proposed (1/1/2021) | I46: Tiers | J46: Bi-Monthly Tiers (Units) | K46: Tiers for Index/Match | L46: Tier Width (Units) | M46: Actual Tier Usage (Units) | O46: Current | P46: 25%/75% F/V (Option 2b) | Q46: 30%/70% F/V (Option 2c)
A47: Tier 1 | B47: 1 | C47: 29.54 | D47: 4.38 | E47: 4.66
A48: Tier 1 | B48: 2 | C48: 29.54 | I48: Tier 1 | J48: 5 | K48: 5 | L48: =+J48 -> 5 | M48: =MIN(#REF!,'Rate Option Data'!$L$48) ->  | O48: 29.54 | P48: 4.69 | Q48: 4.38
A49: Tier 1 | B49: 3 | C49: 29.54 | I49: Tier 2 | J49: 12 | K49: =+J49+1 -> 13 | L49: =+J49-J48 -> 7 | M49: =MIN(#REF!-SUM(M48),'Rate Option Data'!$L$49) ->  | O49: 52.12
A50: Tier 1 | B50: 4 | C50: 29.54 | I50: Tier 3 | J50: 19 | K50: 20 | L50: =+J50-J49 -> 7 | M50: =MIN(#REF!-SUM(M48:M49),'Rate Option Data'!$L$50) ->  | O50: 78.45
A51: Tier 1 | B51: 5 | C51: 29.54 | I51: Tier 4 | J51: 26 | K51: 27 | L51: =+J51-J50 -> 7 | M51: =MIN(#REF!-SUM(M48:M50),'Rate Option Data'!$L$51) ->  | O51: 85.99
A52: Tier 2 | B52: 6 | C52: 52.12 | I52: Tier 5 | J52: 37 | K52: 38 | L52: =+J52-J51 -> 11 | M52: =MIN(#REF!-SUM(M48:M51),'Rate Option Data'!$L$52) ->  | O52: 101.04
A53: Tier 2 | B53: 7 | C53: 52.12 | I53: Tier 6 | J53: 50 | K53: 51 | L53: =+J53-J52 -> 13 | M53: =MIN(#REF!-SUM(M48:M52),'Rate Option Data'!$L$53) ->  | O53: 116.09
A54: Tier 2 | B54: 8 | C54: 52.12 | I54: Tier 7 | J54: =">"&J53 -> >50 | M54: =MIN(#REF!-SUM(M48:M53),'Rate Option Data'!$L$54) ->  | O54: 127.39
A55: Tier 2 | B55: 9 | C55: 52.12 | M55: =SUM(M48:M54) -> 
A56: Tier 2 | B56: 10 | C56: 52.12 | M56: =+M55-#REF! -> 
A57: Tier 2 | B57: 11 | C57: 52.12
A58: Tier 2 | B58: 12 | C58: 52.12
A59: Tier 3 | B59: 13 | C59: 78.45
A60: Tier 3 | B60: 14 | C60: 78.45
A61: Tier 3 | B61: 15 | C61: 78.45
A62: Tier 3 | B62: 16 | C62: 78.45
A63: Tier 3 | B63: 17 | C63: 78.45
A64: Tier 3 | B64: 18 | C64: 78.45
A65: Tier 3 | B65: 19 | C65: 78.45
A66: Tier 4 | B66: 20 | C66: 85.99
A67: Tier 4 | B67: 21 | C67: 85.99
A68: Tier 4 | B68: 22 | C68: 85.99
A69: Tier 4 | B69: 23 | C69: 85.99
A70: Tier 4 | B70: 24 | C70: 85.99
A71: Tier 4 | B71: 25 | C71: 85.99
A72: Tier 4 | B72: 26 | C72: 85.99
A73: Tier 5 | B73: 27 | C73: 101.04
A74: Tier 5 | B74: 28 | C74: 101.04
A75: Tier 5 | B75: 29 | C75: 101.04
A76: Tier 5 | B76: 30 | C76: 101.04
A77: Tier 5 | B77: 31 | C77: 101.04
A78: Tier 5 | B78: 32 | C78: 101.04
A79: Tier 5 | B79: 33 | C79: 101.04
A80: Tier 5 | B80: 34 | C80: 101.04
A81: Tier 5 | B81: 35 | C81: 101.04
A82: Tier 5 | B82: 36 | C82: 101.04
A83: Tier 5 | B83: 37 | C83: 101.04
A84: Tier 6 | B84: 38 | C84: 116.09
A85: Tier 6 | B85: 39 | C85: 116.09
A86: Tier 6 | B86: 40 | C86: 116.09
A87: Tier 6 | B87: 41 | C87: 116.09
A88: Tier 6 | B88: 42 | C88: 116.09
A89: Tier 6 | B89: 43 | C89: 116.09
A90: Tier 6 | B90: 44 | C90: 116.09
A91: Tier 6 | B91: 45 | C91: 116.09
A92: Tier 6 | B92: 46 | C92: 116.09
A93: Tier 6 | B93: 47 | C93: 116.09
A94: Tier 6 | B94: 48 | C94: 116.09
A95: Tier 6 | B95: 49 | C95: 116.09
A96: Tier 6 | B96: 50 | C96: 116.09
A97: Tier 7 | B97: 51 | C97: 127.39

Sheet Gallon Conversion (hidden)
A2: Water Bottles (12 Fl.Oz.) | B2: 128 | C2: Ounces in one gallon | D2: https://www.calculateme.com/volume/fluid-ounces/to-gallons/12
A3: Washing Machine | B3: 15 | C3: Gallons per Load | D3: https://www.home-water-works.org/indoor-use/clothes-washer
A4: Hot Tub | B4: 400 | D4: https://www.apsp.org/Portals/0/IHTA/Drought%20Fact%20Sheet%20-%20Water%20Districts%20final_09-2014.pdf
A5: Semi-Truck Tanker | B5: 9000 | C5: Tank size | D5: https://www.fueloyal.com/10-interesting-facts-tanker-truck/
A6: Swimming Pool | B6: 18000 | C6: Avg LA pool | D6: https://pacinst.org/water-policy-what-about-all-those-swimming-pools-in-los-angeles/
